fUST/lending_fUST_20240122
["ID","MTS","AMOUNT","RATE_DAILY","PERIOD"]
[312429233,1705871438580,-5681.8793965,0.00026005,2]
[312429234,1705871438589,-27132.1551979,0.00026005,2]
[312429236,1705871438599,-11671.6997679,0.00026006,2]
[312429238,1705871438609,-276.52008523,0.00026117,2]
[312429240,1705871438618,-2620.19574737,0.00026618,2]
[312429242,1705871438628,-9463.2748927,0.00027121,2]
[312429244,1705871438637,-3292.94,0.00027385,3]
[312429246,1705871438646,-2744.12,0.00027385,3]
[312429248,1705871438655,-2286.76,0.00027385,3]
[312429250,1705871438664,-154.95340266,0.00027394,2]
[312429252,1705871438673,-2102.56602861,0.00027395,2]
[312429254,1705871438683,-36953.29134027,0.00027395,2]
[312429256,1705871438691,-6813.84544549,0.00027396,2]
[312429258,1705871438700,-650.35918282,0.00027397,2]
[312429260,1705871438709,-500.0,0.00027397,2]
[312429262,1705871438718,-500.0,0.00027397,2]
[312429264,1705871438727,-500.0,0.00027397,2]
[312429266,1705871438737,-500.0,0.00027397,2]
[312429268,1705871438746,-500.0,0.00027397,2]
[312429270,1705871438755,-500.0,0.00027397,2]
[312429272,1705871438765,-500.0,0.00027397,2]
[312429274,1705871438774,-500.0,0.00027397,2]
[312429276,1705871438783,-500.0,0.00027397,2]
[312429278,1705871438792,-500.0,0.00027397,2]
[312429280,1705871438801,-500.0,0.00027397,2]
[312429282,1705871438811,-500.0,0.00027397,2]
[312429284,1705871438820,-151.53580206,0.00027397,2]
[312429286,1705871438829,-586.54466235,0.00027397,2]
[312429288,1705871438838,-500.0,0.00027397,2]
[312429290,1705871438847,-591.64,0.00027397,2]
[312429292,1705871438856,-500.0,0.00027397,2]
[312429294,1705871438865,-650.65,0.00027397,2]
[312429296,1705871438875,-472.61612095,0.00027397,2]
[312429298,1705871438884,-500.0,0.00027397,2]
[312429300,1705871438894,-500.0,0.00027397,2]
[312429302,1705871438904,-500.0,0.00027397,2]
[312429304,1705871438914,-500.0,0.00027397,2]
[312429306,1705871438923,-500.0,0.00027397,2]
[312429308,1705871438933,-500.0,0.00027397,2]
[312429310,1705871438942,-500.0,0.00027397,2]
[312429312,1705871438951,-596.38,0.00027397,2]
[312429314,1705871438960,-150.10003198,0.00027397,2]
[312429316,1705871438969,-500.0,0.00027397,2]
[312429318,1705871438978,-425.81095081,0.00027397,2]
[312429319,1705871438987,-500.0,0.00027397,2]
[312429321,1705871438997,-500.0,0.00027397,2]
[312429323,1705871439007,-437.94230908,0.00027397,2]
[312429326,1705871439017,-500.0,0.00027397,2]
[312429327,1705871439027,-500.0,0.00027397,2]
[312429329,1705871439037,-663.05,0.00027397,2]
[312429332,1705871439047,-679.74,0.00027397,2]
[312429333,1705871439057,-500.0,0.00027397,2]
[312429335,1705871439067,-500.0,0.00027397,2]
[312429337,1705871439076,-500.0,0.00027397,2]
[312429339,1705871439085,-500.0,0.00027397,2]
[312429341,1705871439095,-502.39572461,0.00027397,2]
[312429343,1705871439104,-511.9404377,0.00027397,2]
[312429345,1705871439113,-368.94436176,0.00027397,2]
[312429347,1705871439123,-500.0,0.00027397,2]
[312429349,1705871439132,-500.0,0.00027397,2]
[312429351,1705871439142,-500.0,0.00027397,2]
[312429353,1705871439151,-453.82432863,0.00027397,2]
[312429354,1705871439160,-500.0,0.00027397,2]
[312429356,1705871439170,-546.07773803,0.00027397,2]
[312429358,1705871439179,-500.0,0.00027397,2]
[312429360,1705871439188,-500.0,0.00027397,2]
[312429362,1705871439198,-500.0,0.00027397,2]
[312429364,1705871439207,-500.0,0.00027397,2]
[312429366,1705871439218,-500.0,0.00027397,2]
[312429368,1705871439227,-500.0,0.00027397,2]
[312429370,1705871439237,-500.0,0.00027397,2]
[312429372,1705871439247,-500.0,0.00027397,2]
[312429374,1705871439256,-503.89430269,0.00027397,2]
[312429376,1705871439266,-500.0,0.00027397,2]
[312429378,1705871439275,-500.0,0.00027397,2]
[312429380,1705871439284,-500.0,0.00027397,2]
[312429382,1705871439293,-500.0,0.00027397,2]
[312429384,1705871439303,-500.0,0.00027397,2]
[312429386,1705871439312,-500.0,0.00027397,2]
[312429388,1705871439321,-500.0,0.00027397,2]
[312429390,1705871439331,-500.0,0.00027397,2]
[312429392,1705871439343,-1780.55,0.00027397,2]
[312429394,1705871439355,-500.0,0.00027397,2]
[312429395,1705871439364,-500.0,0.00027397,2]
[312429397,1705871439374,-500.0,0.00027397,2]
[312429399,1705871439383,-500.90581918,0.00027397,2]
[312429401,1705871439393,-500.0,0.00027397,2]
[312429403,1705871439402,-500.0,0.00027397,2]
[312429405,1705871439410,-500.0,0.00027397,2]
[312429406,1705871439420,-500.0,0.00027397,2]
[312429408,1705871439429,-500.0,0.00027397,2]
[312429409,1705871439439,-500.0,0.00027397,2]
[312429410,1705871439449,-500.0,0.00027397,2]
[312429412,1705871439459,-500.0,0.00027397,2]
[312429414,1705871439468,-500.0,0.00027397,2]
[312429416,1705871439479,-500.0,0.00027397,2]
[312429417,1705871439489,-500.0,0.00027397,2]
[312429418,1705871439498,-1415.53,0.00027397,2]
[312429419,1705871439508,-500.0,0.00027397,2]
[312429420,1705871439518,-500.0,0.00027397,2]
[312429421,1705871439528,-500.0,0.00027397,2]
[312429423,1705871439536,-500.0,0.00027397,2]
[312429424,1705871439545,-500.0,0.00027397,2]
[312429426,1705871439555,-500.0,0.00027397,2]
[312429428,1705871439564,-500.0,0.00027397,2]
[312429429,1705871439574,-500.0,0.00027397,2]
[312429430,1705871439584,-641.06,0.00027397,2]
[312429431,1705871439593,-1000.0,0.00027397,2]
[312429432,1705871439602,-500.0,0.00027397,2]
[312429433,1705871439612,-500.0,0.00027397,2]
[312429434,1705871439621,-500.0,0.00027397,2]
[312429435,1705871439631,-797.13,0.00027397,2]
[312429436,1705871439640,-500.0,0.00027397,2]
[312429437,1705871439649,-500.0,0.00027397,2]
[312429438,1705871439659,-500.0,0.00027397,2]
[312429439,1705871439668,-500.0,0.00027397,2]
[312429440,1705871439677,-1001.18344881,0.00027397,5]
[312429441,1705871439687,-500.0,0.00027397,2]
[312429442,1705871439696,-500.0,0.00027397,2]
[312429443,1705871439705,-500.0,0.00027397,2]
[312429444,1705871439715,-500.0,0.00027397,2]
[312429445,1705871439724,-500.0,0.00027397,2]
[312429446,1705871439734,-500.0,0.00027397,2]
[312429447,1705871439743,-581.49926245,0.00027397,2]
[312429448,1705871439752,-500.0,0.00027397,2]
[312429449,1705871439769,-500.0,0.00027397,2]
[312429450,1705871439784,-500.0,0.00027397,2]
[312429451,1705871439794,-500.0,0.00027397,2]
[312429452,1705871439804,-2452.816754,0.00027397,2]
[312429453,1705871439815,-500.0,0.00027397,2]
[312429454,1705871439825,-500.0,0.00027397,2]
[312429455,1705871439834,-187.29041613,0.00027397,2]
[312429456,1705871439844,-500.0,0.00027397,2]
[312429457,1705871439853,-500.0,0.00027397,2]
[312429458,1705871439863,-500.0,0.00027397,2]
[312429459,1705871439873,-500.0,0.00027397,2]
[312429460,1705871439883,-251.91583428,0.00027397,2]
[312429461,1705871439892,-500.0,0.00027397,2]
[312429462,1705871439902,-1000.0,0.00027397,2]
[312429463,1705871439911,-500.0,0.00027397,2]
[312429464,1705871439920,-500.0,0.00027397,2]
[312429465,1705871439930,-500.0,0.00027397,2]
[312429466,1705871439940,-500.0,0.00027397,2]
[312429467,1705871439950,-500.0,0.00027397,2]
[312429468,1705871439960,-500.0,0.00027397,2]
[312429469,1705871439971,-500.0,0.00027397,2]
[312429470,1705871439981,-500.0,0.00027397,2]
[312429471,1705871439991,-822.02,0.00027397,2]
[312429472,1705871440001,-515.04596927,0.00027397,2]
[312429473,1705871440010,-500.0,0.00027397,2]
[312429474,1705871440021,-500.0,0.00027397,2]
[312429475,1705871440032,-500.0,0.00027397,2]
[312429476,1705871440042,-500.0,0.00027397,2]
[312429477,1705871440052,-500.0,0.00027397,2]
[312429478,1705871440063,-155.0,0.00027397,2]
[312429479,1705871440073,-500.0,0.00027397,2]
[312429480,1705871440083,-595.36,0.00027397,2]
[312429481,1705871440092,-500.0,0.00027397,2]
[312429482,1705871440102,-500.0,0.00027397,2]
[312429483,1705871440112,-886.41,0.00027397,2]
[312429484,1705871440122,-509.79,0.00027397,2]
[312429485,1705871440131,-500.0,0.00027397,2]
[312429486,1705871440140,-500.0,0.00027397,2]
[312429487,1705871440149,-3674.28,0.00027397,2]
[312429488,1705871440159,-1325.81,0.00027397,2]
[312429489,1705871440169,-500.0,0.00027397,2]
[312429490,1705871440178,-500.0,0.00027397,2]
[312429491,1705871440189,-1626.27,0.00027397,2]
[312429492,1705871440198,-500.0,0.00027397,2]
[312429493,1705871440207,-500.0,0.00027397,2]
[312429494,1705871440216,-531.92,0.00027397,2]
[312429495,1705871440226,-500.0,0.00027397,2]
[312429496,1705871440235,-500.0,0.00027397,2]
[312429497,1705871440245,-500.0,0.00027397,2]
[312429498,1705871440255,-665.69,0.00027397,2]
[312429499,1705871440264,-500.0,0.00027397,2]
[312429500,1705871440274,-1514.51,0.00027397,2]
[312429501,1705871440283,-500.0,0.00027397,2]
[312429502,1705871440292,-14948.03,0.00027397,2]
[312429503,1705871440303,-500.0,0.00027397,2]
[312429504,1705871440313,-501.64392268,0.00027397,2]
[312429505,1705871440323,-582.91849206,0.00027397,2]
[312429506,1705871440334,-500.0,0.00027397,2]
[312429507,1705871440345,-10108.24,0.00027397,2]
[312429508,1705871440354,-743.28,0.00027397,2]
[312429509,1705871440364,-798.17,0.00027397,2]
[312429510,1705871440373,-500.0,0.00027397,2]
[312429511,1705871440383,-1020.81,0.00027397,2]
[312429512,1705871440393,-500.0,0.00027397,2]
[312429513,1705871440402,-779.12,0.00027397,2]
[312429514,1705871440412,-1048.12,0.00027397,2]
[312429515,1705871440421,-558.29816808,0.00027397,2]
[312429516,1705871440432,-697.81,0.00027397,2]
[312429517,1705871440442,-500.0,0.00027397,2]
[312429518,1705871440451,-7029.81,0.00027397,2]
[312429519,1705871440460,-272.94732908,0.00027397,2]
[312429520,1705871440470,-500.0,0.00027397,2]
[312429521,1705871440479,-500.0,0.00027397,2]
[312429522,1705871440488,-1819.83,0.00027397,2]
[312429523,1705871440497,-849.32,0.00027397,2]
[312429524,1705871440506,-5938.86,0.00027397,2]
[312429525,1705871440514,-500.0,0.00027397,2]
[312429527,1705871440523,-500.0,0.00027397,2]
[312429528,1705871440532,-500.0,0.00027397,2]
[312429529,1705871440541,-500.0,0.00027397,2]
[312429530,1705871440550,-500.0,0.00027397,2]
[312429531,1705871440560,-500.0,0.00027397,2]
[312429532,1705871440570,-1318.39,0.00027397,2]
[312429533,1705871440579,-2281.21,0.00027397,2]
[312429535,1705871440588,-4075.35,0.00027397,2]
[312429537,1705871440597,-500.0,0.00027397,2]
[312429539,1705871440606,-500.0,0.00027397,2]
[312429541,1705871440616,-5187.53,0.00027397,2]
[312429542,1705871440625,-500.0,0.00027397,2]
[312429543,1705871440633,-500.0,0.00027397,2]
[312429544,1705871440642,-500.0,0.00027397,2]
[312429545,1705871440651,-500.0,0.00027397,2]
[312429546,1705871440801,-1117.52,0.00027397,2]
[312429547,1705871440810,-1508.29,0.00027397,2]
[312429548,1705871440819,-500.0,0.00027397,2]
[312429549,1705871440827,-500.0,0.00027397,2]
[312429550,1705871440836,-500.0,0.00027397,2]
[312429551,1705871440845,-200.0,0.00027499,15]
[312429552,1705871440854,-42074.72337016,0.000275,2]
[312429553,1705871440864,-2359.84707037,0.0002767,2]
[312429554,1705871440872,-594.71433165,0.00027671,2]
[312429555,1705871440882,-500.0,0.00027671,2]
[312429556,1705871440890,-500.0,0.00027671,2]
[312429557,1705871440900,-500.0,0.00027671,2]
[312429558,1705871440909,-500.0,0.00027671,2]
[312429559,1705871440918,-65.75700935,0.00027671,2]
[312429560,1705871440933,-434.24299065,0.00027671,2]
[312429561,1705871440942,-208.89958626,0.00027671,2]
[312429562,1705871440951,-227.22379932,0.00027671,2]
[312429605,1705871441574,-547.67132072,0.00025814,2]
[312429607,1705871441583,-1056.65,0.00027397,2]
[312429609,1705871441592,-274.62857446,0.00027671,2]
[312429611,1705871441601,-500.0,0.00027671,2]
[312429613,1705871441609,-500.0,0.00027671,2]
[312429615,1705871441619,-500.0,0.00027671,2]
[312429617,1705871441628,-591.64,0.00027671,2]
[312429619,1705871441637,-500.0,0.00027671,2]
[312429621,1705871441646,-650.65,0.00027671,2]
[312429622,1705871441655,-500.0,0.00027671,2]
[312429624,1705871441664,-500.0,0.00027671,2]
[312429626,1705871441673,-500.0,0.00027671,2]
[312429628,1705871441682,-500.0,0.00027671,2]
[312429630,1705871441691,-596.38,0.00027671,2]
[312429632,1705871441700,-500.0,0.00027671,2]
[312429634,1705871441709,-500.0,0.00027671,2]
[312429636,1705871441718,-500.0,0.00027671,2]
[312429638,1705871441727,-433.77800518,0.00027671,2]
[312429641,1705871441740,-229.27199482,0.00027671,2]
[312429643,1705871441749,-679.74,0.00027671,2]
[312429645,1705871441758,-500.0,0.00027671,2]
[312429646,1705871441766,-512.50623965,0.00027671,2]
[312429648,1705871441776,-500.0,0.00027671,2]
[312429650,1705871441785,-500.0,0.00027671,2]
[312429652,1705871441794,-500.0,0.00027671,2]
[312429653,1705871441803,-500.0,0.00027671,2]
[312429654,1705871441812,-500.0,0.00027671,2]
[312429655,1705871441821,-500.0,0.00027671,2]
[312429656,1705871441829,-500.0,0.00027671,2]
[312429657,1705871441838,-500.0,0.00027671,2]
[312429658,1705871441847,-500.0,0.00027671,2]
[312429659,1705871441856,-500.0,0.00027671,2]
[312429660,1705871441865,-500.0,0.00027671,2]
[312429661,1705871441874,-500.0,0.00027671,2]
[312429662,1705871441883,-500.0,0.00027671,2]
[312429663,1705871441892,-1780.55,0.00027671,2]
[312429664,1705871441901,-500.0,0.00027671,2]
[312429665,1705871441910,-500.0,0.00027671,2]
[312429666,1705871441918,-500.0,0.00027671,2]
[312429667,1705871441927,-500.0,0.00027671,2]
[312429668,1705871441936,-500.0,0.00027671,2]
[312429669,1705871441946,-1415.53,0.00027671,2]
[312429670,1705871441955,-508.00723486,0.00027671,2]
[312429671,1705871441964,-500.0,0.00027671,2]
[312429672,1705871441973,-500.0,0.00027671,2]
[312429673,1705871441982,-500.0,0.00027671,2]
[312429674,1705871441991,-500.0,0.00027671,2]
[312429675,1705871442000,-500.0,0.00027671,2]
[312429676,1705871442009,-500.0,0.00027671,2]
[312429677,1705871442017,-500.0,0.00027671,2]
[312429678,1705871442027,-641.06,0.00027671,2]
[312429679,1705871442036,-500.0,0.00027671,2]
[312429680,1705871442046,-500.0,0.00027671,2]
[312429681,1705871442055,-797.13,0.00027671,2]
[312429682,1705871442066,-500.0,0.00027671,2]
[312429683,1705871442075,-487.49378126,0.00027671,2]
[312429684,1705871442084,-500.0,0.00027671,2]
[312429685,1705871442093,-500.0,0.00027671,2]
[312429686,1705871442102,-500.0,0.00027671,2]
[312429687,1705871442111,-500.0,0.00027671,2]
[312429688,1705871442120,-500.0,0.00027671,2]
[312429689,1705871442129,-500.0,0.00027671,2]
[312429690,1705871442138,-500.0,0.00027671,2]
[312429691,1705871442147,-500.0,0.00027671,2]
[312429693,1705871442156,-500.0,0.00027671,2]
[312429694,1705871442165,-500.0,0.00027671,2]
[312429696,1705871442174,-383.96915112,0.00027671,2]
[312429697,1705871442183,-500.0,0.00027671,2]
[312429699,1705871442193,-500.0,0.00027671,2]
[312429701,1705871442202,-500.0,0.00027671,2]
[312429703,1705871442211,-500.0,0.00027671,2]
[312429705,1705871442220,-500.0,0.00027671,2]
[312429707,1705871442229,-500.0,0.00027671,2]
[312429709,1705871442237,-500.0,0.00027671,2]
[312429711,1705871442248,-822.02,0.00027671,2]
[312429713,1705871442259,-500.0,0.00027671,2]
[312429715,1705871442268,-500.0,0.00027671,2]
[312429717,1705871442277,-500.0,0.00027671,2]
[312429719,1705871442286,-500.0,0.00027671,2]
[312429721,1705871442296,-244.52499214,0.00027671,2]
[312429724,1705871442310,-255.47500786,0.00027671,2]
[312429726,1705871442319,-595.36,0.00027671,2]
[312429728,1705871442328,-500.0,0.00027671,2]
[312429730,1705871442340,-500.0,0.00027671,2]
[312429732,1705871442349,-886.41,0.00027671,2]
[312429734,1705871442358,-509.79,0.00027671,2]
[312429735,1705871442368,-500.0,0.00027671,2]
[312429737,1705871442378,-500.0,0.00027671,2]
[312429739,1705871442387,-3674.28,0.00027671,2]
[312429741,1705871442396,-1325.81,0.00027671,2]
[312429743,1705871442405,-500.0,0.00027671,2]
[312429745,1705871442415,-500.0,0.00027671,2]
[312429747,1705871442426,-1626.27,0.00027671,2]
[312429749,1705871442434,-500.0,0.00027671,2]
[312429751,1705871442444,-531.92,0.00027671,2]
[312429753,1705871442453,-500.0,0.00027671,2]
[312429755,1705871442461,-665.69,0.00027671,2]
[312429757,1705871442470,-500.0,0.00027671,2]
[312429759,1705871442479,-364.87005197,0.00027671,2]
[312430192,1705871446513,-271.73466582,0.00025814,2]
[312430194,1705871446522,-156.82105308,0.00025814,2]
[312430196,1705871446531,-1905.64,0.00027661,3]
[312430198,1705871446540,-1149.63994803,0.00027671,2]
[312430200,1705871446549,-67.37318485,0.00027671,2]
[312434950,1705872632567,-243.07986373,0.00023207,2]
[312434952,1705872632578,-154.75239617,0.00023208,4]
[312434954,1705872632587,-166.666666,0.00023215,2]
[312434956,1705872632596,-106.8378353,0.00023584,2]
[312434957,1705872632608,-272.4388054,0.00023584,2]
[312434958,1705872632617,-884.08580088,0.00023674,2]
[312435055,1705872638825,-1600.30041402,0.00023674,2]
[312435057,1705872638836,-526.59632113,0.00023967,2]
[312435063,1705872638882,-232.62198587,0.00023967,2]
[312435065,1705872638892,-23646.510864,0.00024583,2]
[312435067,1705872638902,-280.0,0.00024658,2]
[312435069,1705872638911,-7379.86363499,0.00025,2]
[312435071,1705872638920,-482.62251661,0.00025571,2]
[312435073,1705872638930,-1006.99067285,0.00025933,2]
[312435075,1705872638939,-166.666666,0.0002638,2]
[312435077,1705872638948,-200.0,0.00027041,15]
[312435079,1705872638957,-199.1433421,0.00027078,2]
[312435082,1705872638966,-1018.6437214,0.00027115,2]
[312435084,1705872638975,-2452.95240971,0.00027116,2]
[312435087,1705872638984,-179.7666778,0.00027297,2]
[312435090,1705872638994,-838.19,0.00027387,3]
[312435093,1705872639003,-1448.33,0.00027387,3]
[312435095,1705872639014,-1206.94,0.00027387,3]
[312435097,1705872639024,-3093.5839729,0.00027395,2]
[312435098,1705872639033,-594.71433165,0.00027397,2]
[312435100,1705872639042,-500.0,0.00027397,2]
[312435102,1705872639051,-500.0,0.00027397,2]
[312435104,1705872639060,-500.0,0.00027397,2]
[312435106,1705872639070,-500.0,0.00027397,2]
[312435108,1705872639080,-500.0,0.00027397,2]
[312435110,1705872639089,-500.0,0.00027397,2]
[312435112,1705872639098,-500.0,0.00027397,2]
[312435114,1705872639107,-500.0,0.00027397,2]
[312435116,1705872639116,-500.0,0.00027397,2]
[312435117,1705872639125,-500.0,0.00027397,2]
[312435119,1705872639135,-645.0704985,0.00027397,2]
[312435121,1705872639145,-500.0,0.00027397,2]
[312435122,1705872639154,-500.0,0.00027397,2]
[312435123,1705872639163,-500.0,0.00027397,2]
[312435124,1705872639173,-644.41,0.00027397,2]
[312435125,1705872639182,-500.0,0.00027397,2]
[312435126,1705872639190,-500.0,0.00027397,2]
[312435127,1705872639199,-500.0,0.00027397,2]
[312435128,1705872639208,-808.21,0.00027397,2]
[312435130,1705872639219,-500.0,0.00027397,2]
[312435131,1705872639228,-500.0,0.00027397,2]
[312435133,1705872639237,-500.0,0.00027397,2]
[312435135,1705872639246,-503.30082423,0.00027397,2]
[312435137,1705872639255,-500.0,0.00027397,2]
[312435139,1705872639264,-500.0,0.00027397,2]
[312435141,1705872639273,-500.0,0.00027397,2]
[312435143,1705872639282,-500.0,0.00027397,2]
[312435145,1705872639291,-500.0,0.00027397,2]
[312435147,1705872639300,-579.56324903,0.00027397,2]
[312435149,1705872639310,-500.0,0.00027397,2]
[312435151,1705872639319,-500.0,0.00027397,2]
[312435153,1705872639327,-500.0,0.00027397,2]
[312435155,1705872639337,-500.0,0.00027397,2]
[312435157,1705872639345,-500.0,0.00027397,2]
[312435159,1705872639355,-500.0,0.00027397,2]
[312435161,1705872639363,-500.0,0.00027397,2]
[312435163,1705872639373,-500.0,0.00027397,2]
[312435165,1705872639382,-500.0,0.00027397,2]
[312435167,1705872639391,-251.91583428,0.00027397,2]
[312435169,1705872639399,-500.0,0.00027397,2]
[312435171,1705872639408,-500.0,0.00027397,2]
[312435172,1705872639417,-500.0,0.00027397,2]
[312435174,1705872639426,-500.0,0.00027397,2]
[312435177,1705872639437,-500.0,0.00027397,2]
[312435178,1705872639446,-515.04596927,0.00027397,2]
[312435180,1705872639455,-500.0,0.00027397,2]
[312435182,1705872639466,-500.0,0.00027397,2]
[312435184,1705872639475,-500.0,0.00027397,2]
[312435186,1705872639484,-500.0,0.00027397,2]
[312435188,1705872639493,-500.0,0.00027397,2]
[312435190,1705872639502,-500.0,0.00027397,2]
[312435192,1705872639512,-1000.0,0.00027397,2]
[312435194,1705872639521,-1418.27,0.00027397,2]
[312435197,1705872639531,-500.0,0.00027397,2]
[312435199,1705872639540,-500.0,0.00027397,2]
[312435200,1705872639549,-500.0,0.00027397,2]
[312435203,1705872639559,-500.0,0.00027397,2]
[312435204,1705872639568,-500.0,0.00027397,2]
[312435206,1705872639578,-582.91849206,0.00027397,2]
[312435208,1705872639587,-500.0,0.00027397,2]
[312435210,1705872639596,-500.0,0.00027397,2]
[312435212,1705872639606,-1001.18344881,0.00027397,5]
[312435214,1705872639615,-500.0,0.00027397,2]
[312435216,1705872639624,-500.0,0.00027397,2]
[312435218,1705872639632,-500.0,0.00027397,2]
[312435220,1705872639641,-500.0,0.00027397,2]
[312435222,1705872639651,-500.0,0.00027397,2]
[312435224,1705872639660,-500.0,0.00027397,2]
[312435226,1705872639669,-500.0,0.00027397,2]
[312435228,1705872639678,-500.0,0.00027397,2]
[312435230,1705872639688,-500.0,0.00027397,2]
[312435232,1705872639697,-500.0,0.00027397,2]
[312435234,1705872639706,-500.0,0.00027397,2]
[312435236,1705872639715,-500.0,0.00027397,2]
[312435238,1705872639724,-500.0,0.00027397,2]
[312435240,1705872639733,-1000.0,0.00027397,2]
[312435242,1705872639743,-567.63,0.00027397,2]
[312435244,1705872639754,-500.0,0.00027397,2]
[312435246,1705872639764,-500.0,0.00027397,2]
[312435248,1705872639772,-500.0,0.00027397,2]
[312435250,1705872639783,-500.0,0.00027397,2]
[312435252,1705872639791,-500.0,0.00027397,2]
[312435254,1705872639800,-503.3727828,0.00027397,2]
[312435256,1705872639809,-500.0,0.00027397,2]
[312435257,1705872639818,-655.19,0.00027397,2]
[312435259,1705872639828,-500.0,0.00027397,2]
[312435260,1705872639837,-500.0,0.00027397,2]
[312435261,1705872639846,-500.0,0.00027397,2]
[312435262,1705872639855,-500.0,0.00027397,2]
[312435263,1705872639865,-500.0,0.00027397,2]
[312435264,1705872639874,-500.0,0.00027397,2]
[312435265,1705872639883,-500.0,0.00027397,2]
[312435266,1705872639892,-500.0,0.00027397,2]
[312435267,1705872639901,-500.0,0.00027397,2]
[312435268,1705872639910,-500.0,0.00027397,2]
[312435269,1705872639919,-500.0,0.00027397,2]
[312435270,1705872639928,-500.0,0.00027397,2]
[312435271,1705872639937,-837.02,0.00027397,2]
[312435272,1705872639947,-500.0,0.00027397,2]
[312435273,1705872639956,-156.32295758,0.00027397,2]
[312435274,1705872639965,-500.0,0.00027397,2]
[312435275,1705872639975,-500.0,0.00027397,2]
[312435276,1705872639985,-573.49,0.00027397,2]
[312435277,1705872639993,-500.0,0.00027397,2]
[312435278,1705872640003,-570.55,0.00027397,2]
[312435279,1705872640012,-500.0,0.00027397,2]
[312435280,1705872640021,-425.81095081,0.00027397,2]
[312435281,1705872640030,-500.0,0.00027397,2]
[312435282,1705872640040,-889.76,0.00027397,2]
[312435283,1705872640049,-500.0,0.00027397,2]
[312435284,1705872640058,-500.0,0.00027397,2]
[312435285,1705872640067,-1712.35,0.00027397,2]
[312435286,1705872640076,-1270.57,0.00027397,2]
[312435287,1705872640086,-500.0,0.00027397,2]
[312435288,1705872640095,-155.0,0.00027397,2]
[312435289,1705872640104,-500.0,0.00027397,2]
[312435290,1705872640113,-500.0,0.00027397,2]
[312435291,1705872640122,-3521.18,0.00027397,2]
[312435292,1705872640131,-500.0,0.00027397,2]
[312435293,1705872640140,-500.0,0.00027397,2]
[312435294,1705872640149,-500.0,0.00027397,2]
[312435295,1705872640159,-1020.81,0.00027397,2]
[312435296,1705872640169,-437.94230908,0.00027397,2]
[312435297,1705872640178,-747.44,0.00027397,2]
[312435298,1705872640188,-500.0,0.00027397,2]
[312435299,1705872640197,-500.0,0.00027397,2]
[312435300,1705872640206,-697.81,0.00027397,2]
[312435301,1705872640215,-502.52181998,0.00027397,2]
[312435302,1705872640225,-501.64392268,0.00027397,2]
[312435303,1705872640234,-500.0,0.00027397,2]
[312435304,1705872640243,-500.0,0.00027397,2]
[312435305,1705872640252,-272.94732908,0.00027397,2]
[312435306,1705872640388,-500.0,0.00027397,2]
[312435307,1705872640398,-536.19,0.00027397,2]
[312435308,1705872640407,-14948.03,0.00027397,2]
[312435309,1705872640417,-1451.41,0.00027397,2]
[312435310,1705872640426,-502.39572461,0.00027397,2]